Cogmind - Beta 10.2 --- EXPLORER MODE // 2021.11.07 @ 22:21:22 Player: RD278 Result: Self-destructed Performance ------------- Evolutions (1) 500 Regions Visited (2) 400 Robots Destroyed (23) 115 Value Destroyed (432) 432 Prototype IDs (4) 80 Alien Tech Used (0) 0 Bonus (0) 0 TOTAL SCORE: 1527 Bonus ------- None Cogmind --------- Core Integrity 373/400 Matter 253/300 Energy 265/265 System Corruption 0% Temperature Cool (0) Movement Walking (120) Location -9/Materials Parts ------- > --- POWER (1) -------- Improved Ion Engine > --- PROPULSION (3) --- Aluminum Leg Aluminum Leg Improved Aluminum Leg > --- UTILITY (4) ------ Small Storage Unit Terrain Scanner Terrain Scan Processor Targeting Computer > --- WEAPON (2) ------- Medium Laser Improved Light Cannon > --- INVENTORY (6) ---- Light Treads Weapon Shielding Grenade Launcher Grenade Launcher Peak State ------------ > --- POWER ------------ Improved Ion Engine > --- PROPULSION ------- Improved Aluminum Leg Wheel Compact Wheel > --- UTILITY ---------- Small Storage Unit Terrain Scanner Terrain Scan Processor Targeting Computer > --- WEAPON ----------- Medium Laser Improved Light Cannon > --- INVENTORY -------- Light Treads Aluminum Leg Aluminum Leg Weapon Shielding Grenade Launcher Grenade Launcher [Rating: 14] Favorites ----------- Power Ion Engine Engine Ion Engine Propulsion Wheel Treads Light Treads Leg Aluminum Leg Wheel Wheel Utility Targeting Computer Device Terrain Scanner Storage Small Storage Unit Processor Targeting Computer Protection Weapon Shielding Weapon Medium Laser Energy Gun Medium Laser Ballistic Gun Assault Rifle Ballistic Cannon Improved Light Cannon Build | -11 -10 -9 ------- Run | Scr Mat Mat Slots Evolved 3 | . 1 2 Power . | . . . Propulsion 1 | . . 1 Utility 2 | . 1 1 Weapon . | . . . Parts Attached 28 | 7 12 9 Power 2 | . 1 1 Engine 2 | . 1 1 Core . | . . . Reactor . | . . . Propulsion 16 | 3 6 7 Treads 1 | . . 1 Leg 8 | 1 2 5 Wheel 7 | 2 4 1 Hover . | . . . Flight . | . . . Utility 6 | 2 3 1 Device 1 | . 1 . Storage 1 | . 1 . Processor 3 | 1 1 1 Hackware . | . . . Protection 1 | 1 . . Artifact . | . . . Weapon 4 | 2 2 . Energy Gun 2 | 1 1 . Energy Cannon . | . . . Ballistic Gun 1 | 1 . . Ballistic Cannon 1 | . 1 . Launcher . | . . . Special Weapon . | . . . Impact Weapon . | . . . Slashing Weapon . | . . . Piercing Weapon . | . . . Special Melee Weapon . | . . . Unidentified Prototypes . | . . . Parts Lost . | . . . Power . | . . . Propulsion . | . . . Utility . | . . . Weapon . | . . . Highest Loss Streak . | . . . Average Slot Usage (%) 98 | . 97 99 Engine 10 | . 10 10 Leg 6 | . 3 11 Wheel 20 | . 21 18 Device 8 | . 7 10 Storage 9 | . 9 10 Processor 17 | . 16 20 Protection 1 | . 2 . Energy Gun 10 | . 10 10 Ballistic Gun 6 | . 9 . Ballistic Cannon 6 | . 4 10 Naked Turns . | . . . Heaviest Build 18 | 5 16 18 Greatest Support 36 | 20 26 36 Greatest Overweight (x) 1 | . . 1 Average Overweight (x) . | . . . Largest Inventory Capacity 6 | 4 6 6 Average Capacity 5 | 4 5 6 Most Carried 6 | 4 6 6 Average Carried 5 | 3 5 4 Final Capacity 6 | 4 6 6 Final Carried 6 | 4 6 4 Class Distribution -------------------- 73% | Hacker-Mutant 26% | Scavenger-Mutant Dominant Class ---------------- Hacker-Mutant | -10/Materials Scavenger-Mutant | -9/Materials Resources | -11 -10 -9 ----------- Run | Scr Mat Mat Matter Collected 613 | 255 232 126 Remotely . | . . . Salvage Created 696 | 47 477 172 Parts 56 | 4 37 15 Haulers Intercepted . | . . . Recyclers Shooed 4 | . 1 3 Parts Field Recycled . | . . . Retrieved Matter . | . . . Parts Self-Destructed . | . . . Prevented . | . . . Kills | -11 -10 -9 ------- Run | Scr Mat Mat Combat Hostiles Destroyed 13 | 1 9 3 Guns 10 | 1 9 . Cannons 3 | . . 3 Classes Destroyed 8 | 2 4 2 Worker 4 | 1 2 1 Builder 2 | . 1 1 Tunneler 1 | . . 1 Recycler 2 | . 2 . Watcher 1 | . 1 . Swarmer 4 | . 4 . Grunt 8 | 1 5 2 Sentry 1 | . . 1 Best Kill Streak 4 | 1 4 2 Combat Bots Only 3 | 1 3 2 Max Kills in Single Turn 1 | 1 1 1 Gunslinging . | . . . Exploded . | . . . Melee . | . . . Uniques/NPCs Destroyed . | . . . Combat | -11 -10 -9 -------- Run | Scr Mat Mat Damage Taken 415 | 21 244 150 Core 59 | . 32 27 Absorbed by Shields . | . . . Core Remaining (%) 93 | 100 87 . Volleys Fired 54 | 6 34 14 Largest 2 | 2 2 2 Hottest 89 | 70 70 89 Shots Fired 107 | 12 67 28 Gun 92 | 12 66 14 Cannon 15 | . 1 14 Launcher . | . . . Special . | . . . Kinetic 55 | 6 35 14 Thermal 52 | 6 32 14 Explosive . | . . . Electromagnetic . | . . . Robot Hit Streak 35 | 11 35 15 Robot Miss Streak 2 | . 2 1 Penetration Max . | . . . Secondary Targets 1 | . 1 . Max Gunslinging Chain 1 | . 1 . Shots Hit Robots 88 | 11 55 22 Core Hits 37 | 3 24 10 Critical Hits 1 | . 1 . Critical Kills . | . . . Critical Parts Destroyed 1 | . 1 . Melee Attacks . | . . . Impact . | . . . Slashing . | . . . Piercing . | . . . Sneak Attacks . | . . . Combat Hostiles . | . . . Follow-up Attacks . | . . . Damage Inflicted 1187 | 137 679 371 Guns 943 | 137 656 150 Cannons 244 | . 23 221 Explosions . | . . . Melee . | . . . Ramming . | . . . Kinetic 598 | 63 314 221 Thermal 589 | 74 365 150 Explosive . | . . . Electromagnetic . | . . . Impact . | . . . Slashing . | . . . Piercing . | . . . Highest Corruption . | . . . Average Corruption . | . . . Corruption Purged . | . . . Overload Shots . | . . . Overflow Damage . | . . . Projectiles . | . . . Explosions . | . . . Melee . | . . . Knockbacks 4 | . . 4 Impact . | . . . Kinetic 2 | . . 2 Secondary 2 | . . 2 Self-Inflicted Damage . | . . . Shots . | . . . Rammed . | . . . Targets Rammed . | . . . Kicked . | . . . Crushed . | . . . Highest Temperature 285 | 6 159 285 Average Temperature 60 | 3 41 102 Received Heat Transfer 306 | 18 174 114 Siege Activations . | . . . Robots Corrupted . | . . . Combat Hostiles . | . . . Parts Fried . | . . . Impact Corruptions . | . . . Robots Melted . | . . . Combat Hostiles . | . . . Parts Melted 4 | . 4 . Heat Transferred 1739 | 222 1073 444 Parts Sabotaged . | . . . Parts Stolen . | . . . Parts Stripped . | . . . Power Chain Reactions . | . . . Missiles Intercepted . | . . . Alert | -11 -10 -9 ------- Run | Scr Mat Mat Peak Influence 337 | 25 337 113 Initial 12 | . 12 . Average 78 | 8 113 30 Maximum Alert Level 1 | . 1 . Low Security (%) 90 | 100 83 100 Level 1 9 | . 16 . Level 2 . | . . . Level 3 . | . . . Level 4 . | . . . Level 5 . | . . . High Security . | . . . Max Security . | . . . Squads Dispatched 2 | . 2 . Investigation 2 | . 2 . Extermination . | . . . Reinforcement . | . . . Assault . | . . . Garrison . | . . . Intercept . | . . . Construction Impeded . | . . . Haulers Reinforced . | . . . Stealth | -11 -10 -9 --------- Run | Scr Mat Mat Distress Signals 1 | . . 1 Communications Jammed . | . . . Distress Signals . | . . . Times Spotted 20 | 1 16 3 Peak Tracking Total 4 | 1 4 2 Tactical Retreats 1 | . 1 . Traps | -11 -10 -9 ------- Run | Scr Mat Mat Traps Triggered . | . . . Indirectly . | . . . Trap Hack Attempts . | . . . Triggered . | . . . Disarmed . | . . . Reprogrammed . | . . . Reused . | . . . Traps Extracted . | . . . Installed . | . . . Triggered . | . . . Machines | -11 -10 -9 ---------- Run | Scr Mat Mat Machines Disabled . | . . . Max in Single Turn . | . . . Machines Sabotaged . | . . . Garrisons Compromised . | . . . Overloaded Fab Kills . | . . . Fab Network Shutdowns . | . . . Hacking | -11 -10 -9 --------- Run | Scr Mat Mat Machines Accessed 7 | . 6 1 Terminals 7 | . 6 1 Fabricators . | . . . Repair Stations . | . . . Recycling Units . | . . . Scanalyzers . | . . . Garrison Access . | . . . Total Hacks 24 | . 18 6 Successful 15 | . 12 3 Failed 9 | . 6 3 Catastrophic . | . . . Database Lockouts . | . . . Manual 3 | . 3 . Terminals 24 | . 18 6 Fabricators . | . . . Repair Stations . | . . . Recycling Units . | . . . Scanalyzers . | . . . Garrison Access . | . . . Terminal Hacks 15 | . 12 3 Record 1 | . 1 . Part Schematic 1 | . 1 . Robot Analysis 1 | . 1 . Prototype ID Bank 3 | . 2 1 Branch Access Points 1 | . 1 . Emergency Access Points 1 | . . 1 Terminal Index 1 | . 1 . Locate Traps 1 | . 1 . Patrol Status 1 | . . 1 Recall Investigation 1 | . 1 . Hauler Manifests 1 | . 1 . Registered Components 1 | . 1 . Zone Layout 1 | . 1 . Fabricator Hacks . | . . . Repair Station Hacks . | . . . Recycling Unit Hacks . | . . . Scanalyzer . | . . . Garrison Access Hacks . | . . . Unauthorized Hacks . | . . . Terminals . | . . . Fabricators . | . . . Repair Stations . | . . . Recycling Units . | . . . Scanalyzers . | . . . Garrison Access . | . . . Data Cores Recovered . | . . . Used . | . . . Hacking Detections 5 | . 4 1 Full Trace Events 2 | . 2 . Feedback Events . | . . . Feedback Blocked . | . . . Robot Schematics Acquired . | . . . Robots Built . | . . . Matter . | . . . Time . | . . . Total Robot Build Rating . | . . . Part Schematics Acquired 1 | . 1 . Parts Built . | . . . Matter . | . . . Time . | . . . Total Part Build Rating . | . . . Parts Repaired . | . . . Time . | . . . Parts Recycled . | . . . Recycled Matter . | . . . Retrieved Matter . | . . . Retrieved Components . | . . . Parts Scanalyzed . | . . . Part Schematics Acquired . | . . . Parts Damaged . | . . . Bothacking | -11 -10 -9 ------------ Run | Scr Mat Mat Used RIF Installer . | . . . Robots Hacked . | . . . Non-combat . | . . . Combat . | . . . Robot Hacks Applied . | . . . Relay Couplers Released . | . . . Robots Rewired . | . . . Allies Hacked . | . . . Hacks Repelled . | . . . Allies | -11 -10 -9 -------- Run | Scr Mat Mat Total Allies . | . . . Largest Group . | . . . Highest-Rated Group . | . . . Highest-Rated Ally . | . . . Total Orders . | . . . Ally Attacks . | . . . Total Damage . | . . . Kills . | . . . Allies Corrupted . | . . . Allies Melted . | . . . Intel | -11 -10 -9 ------- Run | Scr Mat Mat Robot Analysis Total 1 | . 1 . Derelict Logs Recovered . | . . . Drone Launches . | . . . Drone Recoveries . | . . . Exploration | -11 -10 -9 ------------- Run | Scr Mat Mat Turns Passed 1346 | 120 815 411 Spaces Moved 1046 | 95 699 252 Core 23 | 23 . . Treads . | . . . Legs 322 | 46 47 229 Wheels 701 | 26 652 23 Hover . | . . . Flight . | . . . Fastest Speed 50 | 50 80 86 Average Speed 101 | 92 88 138 Slowest Speed 150 | 120 120 150 Overloaded Moves . | . . . Propulsion Burnouts . | . . . Robots Hopped . | . . . Cave-ins Triggered . | . . . Exploration Rate (%) 34 | 10 73 19 Regions Visited 2 Branch Regions . Pre-discovered Areas . | . . . Known Exits Taken 2 | 1 1 . Unknown Exits Taken . | . . . Scrap Searched . | . . . Spaces Dug . | . . . Terrain Destroyed 2 | . . 2 Melee . | . . . Projectile 2 | . . 2 AOE . | . . . Terrain Rammed . | . . . Walls Destroyed . | . . . Machines Disabled . | . . . Actions | -11 -10 -9 --------- Run | Scr Mat Mat Total 1224 | 112 825 287 Wait 66 | . 66 . Move 1044 | 94 698 252 Hop . | . . . Pick Up 16 | 5 7 4 Fast Attach 12 | 5 4 3 Attach 7 | 1 . 6 Detach 1 | . . 1 Swap 9 | 1 8 . Drop 15 | . 8 7 Fire 54 | 6 34 14 Melee . | . . . Ram . | . . . Kick . | . . . Crush . | . . . Escape Stasis . | . . . Rewire . | . . . Trap . | . . . Miscellaneous . | . . . Route ------- -11/Scrapyard -10/Materials (discovered 4 exits: *Mat x2 / *Min x2) -9/Materials History --------- Turn | Location | Event 2 | -11/Scrapyard | Met Revision 17 69 | -11/Scrapyard | Identified exit to Materials 69 | -11/Scrapyard | Discovered exit to Materials (range 8) 121 | -11/Scrapyard | Entered Materials 121 | -10/Materials | Evolved 1 slot: Utility x1 146 | -10/Materials | Identified exit to Mines 330 | -10/Materials | Build established: Hacker-Mutant 351 | -10/Materials | Identified exit to Materials 351 | -10/Materials | Discovered exit to Materials (range 16) 911 | -10/Materials | Discovered exit to Materials (range 16) 936 | -10/Materials | Entered another Materials area 936 | -9/Materials | Evolved 2 slots: Propulsion x1, Utility x1 1224 | -9/Materials | Build established: Scavenger-Mutant 1347 | -9/Materials | Self-destructed Last Messages --------------- T-07 Excavator destroyed. Dropped Imp. Aluminum Leg. Acquired Wheel. Dropped Aluminum Leg. R-06 Scavenger collects Aluminum Leg. Acquired Imp. Aluminum Leg. R-06 Scavenger knocked back. R-06 Scavenger distress signal alerts nearby ally. R-06 Scavenger knocked back. G-34 Mercenary destroyed. G-47 Trooper destroyed. Acquired 33 matter. Acquired 21 matter. Dropped Wheel. Dropped Com. Wheel. R-06 Scavenger collects Wheel. Acquired Aluminum Leg. K-01 Serf destroyed. Acquired 25 matter. R-06 Scavenger collects Lgt. Ion Engine. Map ----- +----------------------------------------------------+ | ????????????????????????????????????????????????? | | ????????????????????????????????????????????????? | | ????????????????????????????????????????????????? | | ????????????????????????????????????????????????? | | ????????????????????????????????????????????????? | | ????????????????????????????????????????????????? | | ????????????????????????????????????????????????? | | ????????????????????????????????????????????????? | | ????????????????????????????????????????????????? | | ???????????????????#????????????????????????????? | | ???????????????????+ ???????????????????????????? | | ???????????????????# ??#???????????????????????? | | ???????????????????# ??????????????????????????? | | ??????????????????? #??????????? ????????????? | | ???????????????????? ??###?? ???? ????????????? | | ????????????????????? ]###"#????? ??????????????? | | ????????????????????? +??? ????????????????? | | ????????????????????"? #????????????????????? | | ????????????????????? ? ##??????? ??????????? | | ?????????????? ????????? #???????? ??????????? | | ?????????????????#????#?# ##???? ?????????????? | | ??????????????########### #???????????????????? | | ??????????????# ]?# ############ ???????? | | ????????????#?# * # ??????? | | ??????????????# !!! # ??????? | | ??????????????# !! @ """????????? | | ??????????????# !! # ru "R ????????? | | ??????????????# !## ######## """????????? | | ??????????????# ?#r# ? ????? ?????????? | | ??????????????# ??# #???"? ????? ????????? | | ??????????????########???# # ?????? ??????????? | | ????????????????#???#???## #??""??? ????????????? | | ????????????????????##??## # ??????????????????? | | ???????????????????#?#???# #? ? ?#?????????????? | | ?????????????????#???????# #????????????????????? | | ??????????????#?#????????# ##???????????????????? | | ????????????????#??#?#???# ##?????? ???????????? | | ???????????????????#??#?## #??##?? ? ??????????? | | ????????????##???##?#????# #??????? ?????????? | | ??????????????#?#??#???#?# #?????? ?????????? | | ???????????#???##?????#??# #????? #????????? | | ?????????????#???#?#?##### ##### #????????? | | ??????????#?############ #????????? | | ?????????#????## ! ## #????????? | | ???????#?#?#???# ## #????????? | | ?????#?????##??# """ ## #????????? | | ????#??######### """ ## #########+###????????? | | ???????#???##### """ ## #? ?? ??????#????????? | | ?????#?#####??## ## ## ? ?????#??????????? | | ???#?#####?########+### # ?????????????????? | +----------------------------------------------------+ Best States ------------- Heat Dissipation 28 Energy Generation 12 Energy Capacity 265 Matter Stores 300 Matter Capacity 300 Sight Range 16 Terrain Scan Range 14 Terrain Scan Density 85 Resistance: KI 35 Resistance: TH 35 Resistance: EX 35 Resistance: EM 35 Resistance: I 35 Resistance: S 35 Resistance: P 35 Weapon Shielding 33 Evasion (%) 50 Targeting Accuracy 10 Offensive Hacking 20 Item Schematics ----------------- Lrg. Storage Unit | -10/Materials | Hacked Robot Schematics ------------------ None Fabricated ------------ Nothing Alien Tech Used ----------------- None Achievements -------------- GoHome() Challenges ------------ None Game ------ Seed ShieldDisruptionStorm Manual? 0 Play Time 00:31:43 Cumulative 7.3 hours Start 2021.10.28 @ 22:53:00 End 2021.11.07 @ 22:21:22 Sessions 3 Manual Loads 0 Difficulty Explorer Special Mode None Game No. 3 Rogue 0 Adventurer 0 Explorer 3 Win Type - Total 0 Types 0/0/0/0/0/0/0/0/0 Lore% 3 Gallery% 8 Achievement% 12 Wizard Run 0 Options --------- ASCII 0 Keyboard 0 Movement Mouse Keybinds 0 Fullscreen 1 Font 18/X11 Map View 76x50 Tactical HUD 0 Map Filters NONE Filters NONE Steam 1 RUN: 28b95d5a-0278-48a3-a763-c620f4fc5e34